bitfinex/quotes_ETHUSD_20220219
["timestamp","ask_amount","ask_price","bid_price","bid_amount"]
[1645286794693,0.435,2759.2,2758.9,1.81801728]
[1645286794892,3.935,2759.1,2758.9,1.81801728]
[1645286795097,3.5,2759.0,2758.9,1.81801728]
[1645286795295,7.28241203,2759.0,2758.9,1.81801728]
[1645286795596,7.28241203,2759.0,2758.7,2.40558189]
[1645286795597,13.299,2758.8,2758.7,2.40558189]
[1645286795800,11.11,2758.6,2758.1,0.69000222]
[1645286795996,11.11,2758.6,2757.7,0.9111009]
[1645286795997,11.11,2758.2,2757.7,0.9111009]
[1645286796195,11.11,2758.2,2757.6,0.74961999]
[1645286796196,15.95232,2758.1,2757.8,0.9111009]
[1645286796394,15.95232,2758.1,2757.7,0.9111009]
[1645286796395,1.0,2758.0,2757.7,0.9111009]
[1645286796599,1.01416634,2757.9,2757.7,0.9111009]
[1645286797196,1.01416634,2757.9,2757.8,0.9111009]
[1645286797395,2.82861634,2757.9,2757.8,0.9111009]
[1645286797600,2.82861634,2757.9,2757.7,0.91453387]
[1645286797845,3.72196,2757.8,2757.7,0.00343297]
[1645286798040,3.72196,2757.8,2757.6,0.74961999]
[1645286798641,14.91,2757.7,2757.6,0.74961999]
[1645286798844,16.345,2757.7,2757.6,0.74961999]
[1645286799046,16.045,2757.7,2757.6,0.74961999]
[1645286799443,15.045,2757.7,2757.6,0.74961999]
[1645286799651,18.299,2757.6,2757.5,0.00678498]
[1645286799847,19.64149,2757.6,2757.5,0.00678498]
[1645286800046,21.01939905,2757.6,2757.5,8.498e-05]
[1645286800246,13.299,2757.2,2756.7,1.36665135]
[1645286800445,0.5,2756.8,2756.7,1.36665135]
[1645286800949,21.799,2756.8,2756.4,1.37134294]
[1645286801144,11.11,2756.5,2756.4,0.00469159]
[1645286801343,0.435,2756.5,2756.4,0.00469159]
[1645286801596,2.189,2756.8,2756.5,0.76687947]
[1645286801597,1.81545,2756.6,2756.5,0.76687947]
[1645286801795,4.70243173,2756.9,2756.5,2.11525987]
[1645286801796,1.01528348,2756.9,2756.5,2.11525987]
[1645286801994,0.90762,2756.8,2756.5,2.11525987]
[1645286802395,0.90762,2756.8,2756.6,1.3483804]
[1645286802595,1.01528348,2756.9,2756.5,2.11525987]
[1645286802795,1.01528348,2756.9,2756.5,1.42696723]
[1645286802996,1.01528348,2756.9,2756.6,1.3483804]
[1645286803699,1.01528348,2756.9,2756.5,0.07858683]
[1645286804097,1.2076426,2756.9,2756.5,0.07858683]
[1645286804396,1.2076426,2756.9,2756.5,1e-08]
[1645286804397,0.3,2756.8,2756.5,1e-08]
[1645286804801,2.11534,2756.8,2756.5,1e-08]
[1645286805098,0.90761,2756.7,2756.5,1e-08]
[1645286805545,1.90761,2756.7,2756.5,1e-08]
[1645286805746,1.90761,2756.7,2756.5,0.00343136]
[1645286806543,1.0,2756.7,2756.5,1e-08]
[1645286806744,1.0,2756.7,2756.5,0.67379938]
[1645286806945,1.435,2757.1,2756.5,0.00343136]
[1645286807141,3.5,2757.5,2756.5,0.00343136]
[1645286807142,3.935,2757.5,2756.5,0.00343136]
[1645286807350,3.80296117,2758.0,2756.6,8.0]
[1645286807546,37.00716299,2758.8,2756.6,8.0]
[1645286807547,0.01284088,2759.0,2756.9,0.67379937]
[1645286807759,3.5,2759.1,2758.3,0.70992009]
[1645286807947,0.75799595,2759.4,2758.4,3.5]
[1645286808145,3.0167,2760.1,2758.3,0.7724]
[1645286808146,0.01371353,2759.3,2758.3,0.7724]
[1645286808346,0.01371353,2759.3,2758.4,0.90674]
[1645286808746,0.5,2758.8,2758.4,0.90674]
[1645286809010,11.1170904,2759.8,2758.8,0.9929096]
[1645286809011,0.69787769,2759.2,2758.8,0.9929096]
[1645286809208,11.11,2759.8,2758.8,0.9929096]
[1645286809209,11.11,2759.6,2758.8,0.9929096]
[1645286809411,0.01371815,2759.4,2758.8,0.9929096]
[1645286809817,9.48077974,2759.6,2758.8,0.9929096]
[1645286810021,0.00342875,2760.0,2758.9,3.5]
[1645286810210,1.1926472,2760.2,2758.9,0.3892]
[1645286810211,0.65479071,2759.9,2758.9,0.3892]
[1645286810412,0.65479071,2759.9,2758.8,0.9929096]
[1645286810610,0.435,2760.2,2758.8,4.4929096]
[1645286810810,0.435,2760.2,2758.9,0.90653]
[1645286811109,11.11,2760.1,2758.9,0.90653]
[1645286811809,0.90654,2759.8,2759.1,0.52024797]
[1645286812843,0.85654,2759.8,2759.1,0.52024797]
[1645286813047,0.90647,2760.0,2759.2,3.5]
[1645286813251,1.00865307,2760.8,2759.2,3.5]
[1645286813252,0.5,2760.7,2759.3,2.71886]
[1645286813440,0.5,2760.7,2759.4,5.03975296]
[1645286813640,0.435,2761.3,2759.5,1.72085296]
[1645286813838,0.99230017,2761.3,2760.5,0.66555514]
[1645286814039,0.01372095,2760.6,2760.5,0.66555514]
[1645286814640,0.01372095,2760.6,2759.9,1.81221]
[1645286815042,12.10230017,2761.3,2759.8,3.5]
[1645286815250,12.10230017,2761.3,2759.3,3.5]
[1645286815251,0.00225385,2760.4,2759.3,3.5]
[1645286815442,0.00225385,2760.4,2759.1,5.31269]
[1645286815642,0.00225385,2760.4,2760.1,0.521562]
[1645286816240,1.341313,2760.9,2760.1,0.521562]
[1645286816241,0.435,2760.9,2760.1,0.521562]
[1645286816486,0.435,2760.9,2759.3,6.2186076]
[1645286816487,0.00225385,2760.4,2759.3,6.2186076]
[1645286816688,0.00225385,2760.4,2759.3,3.62484]
[1645286816887,0.00225385,2760.4,2759.4,3.5]
[1645286817288,0.00225385,2760.4,2759.4,4.58732]
[1645286817488,1.435,2761.2,2759.4,4.58732]
[1645286817688,1.435,2761.2,2760.4,0.55260153]
[1645286817689,0.01372591,2760.5,2760.4,0.55260153]
[1645286818689,2.81241,2761.0,2760.4,0.55260153]
[1645286818890,0.00343176,2760.6,2760.4,0.55260153]
[1645286819690,0.00343176,2760.6,2759.7,1.81228]
[1645286819892,1.81264,2760.7,2759.6,0.1811]
[1645286820246,1.81264,2760.7,2759.5,3.5]
[1645286820247,0.00343174,2760.6,2759.5,3.5]
[1645286820447,0.00343174,2760.6,2759.6,0.90627]
[1645286820641,0.90970174,2760.6,2759.6,0.90627]
[1645286820841,0.00343174,2760.6,2759.8,0.69074235]
[1645286821041,1.81214,2761.5,2760.8,0.60085377]
[1645286821042,0.435,2761.5,2760.8,0.60085377]
[1645286821242,0.00343191,2760.2,2759.9,3.5]
[1645286821448,0.00343191,2760.2,2759.8,1.81219]
[1645286822243,0.90621,2760.8,2759.9,0.52342006]
[1645286822444,0.50986554,2761.1,2759.9,0.52342006]
[1645286822445,0.00343195,2760.1,2759.9,0.52342006]
[1645286822646,0.00343195,2760.1,2759.2,0.1811]
[1645286822844,0.9066064,2760.0,2759.1,2.3382]
[1645286823151,0.9066064,2760.0,2759.0,2.25083333]
[1645286823345,0.90661,2759.7,2758.9,3.5]
[1645286823544,0.90661,2759.7,2758.8,0.9929096]
[1645286823745,0.00343216,2759.6,2759.0,0.00343292]
[1645286824596,0.86004216,2759.7,2758.8,1.8994396]
[1645286824800,0.86004216,2759.7,2758.8,0.9929096]
[1645286824801,12.01662,2759.5,2758.8,0.9929096]
[1645286824996,12.01662,2759.5,2759.0,0.00343275]
[1645286824997,0.91005212,2759.5,2759.0,0.00343275]
[1645286825196,1.0,2759.4,2759.0,0.00343275]
[1645286825396,0.91005212,2759.5,2759.0,0.00343275]
[1645286825600,0.63397348,2759.4,2759.0,0.00343275]
[1645286825802,0.63397348,2759.4,2758.8,4.5929096]
[1645286826198,0.435,2759.3,2759.1,0.00343519]
[1645286826402,0.00343441,2759.7,2759.1,0.00343519]
[1645286826998,1.0,2760.6,2759.1,0.90629]
[1645286827198,1.7087,2760.8,2759.6,0.66284139]
[1645286827199,0.58683785,2760.4,2759.6,0.66284139]
[1645286827402,0.00343453,2759.7,2759.6,0.66284139]
[1645286827600,0.00343453,2759.7,2759.3,0.00343512]
[1645286828249,0.00343453,2759.7,2758.9,4.40642]
[1645286828250,0.435,2760.5,2758.9,3.5]
[1645286828455,0.435,2760.5,2759.2,1.81257]
[1645286828648,0.435,2760.5,2759.3,3.50343515]
[1645286828649,0.00343461,2759.7,2759.3,3.50343515]
[1645286828849,0.00343461,2759.7,2759.4,0.52624006]
[1645286829450,1.0,2760.4,2759.4,0.52624006]
[1645286829650,0.435,2760.5,2758.8,4.5929096]
[1645286829651,0.9065,2759.9,2758.8,4.5929096]
[1645286829853,0.58359281,2760.1,2759.3,0.00343262]
[1645286829854,0.00343208,2759.7,2759.3,0.00343262]
[1645286830054,0.435,2759.6,2759.3,0.00343262]
[1645286830250,0.00343208,2759.7,2759.6,0.86999999]
[1645286830453,0.43843208,2759.7,2759.6,0.86999999]
[1645286830651,2.24855,2759.7,2759.6,0.86999999]
[1645286830849,3.54855,2759.7,2759.6,0.86999999]
[1645286831058,14.95855,2759.7,2759.6,0.86999999]
[1645286831700,3.84855,2759.7,2759.6,0.86999999]
[1645286832196,14.95855,2759.7,2759.6,0.86999999]
[1645286832397,16.7720723,2759.7,2759.6,0.86999999]
[1645286832897,17.34422055,2759.7,2759.6,0.86999999]
[1645286833603,19.53322055,2759.7,2759.6,0.86999999]
[1645286834199,13.299,2759.5,2758.8,0.9929096]
[1645286834407,13.299,2759.2,2758.8,0.9929096]
[1645286834597,0.90698,2759.3,2758.8,0.9929096]
[1645286834598,13.299,2759.0,2758.8,0.9929096]
[1645286834798,14.63361861,2758.9,2758.8,0.9929096]
[1645286835004,13.44461861,2758.9,2758.8,0.9929096]
[1645286835240,0.435,2758.9,2758.8,0.9929096]
[1645286835447,1.435,2758.9,2758.8,0.9929096]
[1645286835638,1.385,2758.9,2758.8,0.9929096]
[1645286835837,0.385,2758.9,2758.8,0.9929096]
[1645286836438,0.90703,2759.1,2758.8,0.9929096]
[1645286836639,0.90703,2759.1,2758.8,5.14673465]
[1645286837037,0.90703,2759.1,2758.8,4.5929096]
[1645286838038,0.90703,2759.1,2758.8,4.59634234]
[1645286838437,0.435,2759.3,2758.8,4.59634234]
[1645286839099,0.00343159,2759.7,2758.8,4.59634234]
[1645286839100,0.9066396,2759.9,2759.1,0.57870187]
[1645286839305,0.5,2760.1,2759.1,0.57870187]
[1645286839306,0.00343167,2759.7,2759.1,0.57870187]
[1645286840303,0.435,2760.0,2759.6,0.71150669]
[1645286840501,0.00343196,2759.7,2759.6,0.71150669]
[1645286841099,0.00343196,2759.7,2759.3,0.00343255]
[1645286841506,0.00343196,2759.7,2759.2,1.53979553]
[1645286841507,0.90643,2760.1,2759.2,1.53979553]
[1645286841702,0.00343204,2759.7,2759.3,0.00343258]
[1645286841901,0.00343204,2759.7,2759.3,3.50343258]
[1645286842101,0.00343204,2759.7,2759.4,0.53279843]
[1645286842305,0.00343204,2759.7,2759.5,3.5]
[1645286842502,0.00343204,2759.7,2759.5,2.75]
[1645286842751,1.81255,2760.7,2759.5,2.75]
[1645286842948,0.00343212,2759.7,2759.6,1.53956574]
[1645286843153,0.00343212,2759.7,2759.4,1.62017843]
[1645286843349,0.00343212,2759.7,2759.5,1.53961212]
[1645286843550,0.00343212,2759.7,2759.4,0.71389843]
[1645286843949,0.85979212,2760.2,2759.4,0.71389843]
[1645286844254,0.00343208,2759.7,2759.3,3.50343262]
[1645286844449,0.00343208,2759.7,2759.5,0.50464308]
[1645286845149,1.55795438,2760.3,2759.5,0.50464308]
[1645286845450,12.66795438,2760.3,2759.5,0.50464308]
[1645286845651,0.90634,2760.2,2759.5,0.50464308]
[1645286845948,12.01634,2760.2,2759.5,0.50464308]
[1645286846150,12.01634,2760.2,2759.0,2.6132]
[1645286846353,13.299,2760.0,2759.0,2.6132]
[1645286846597,12.0167228,2759.6,2758.8,0.9929096]
[1645286846799,0.90673,2759.3,2758.8,0.9929096]
[1645286846995,0.90673,2759.3,2758.9,1.53997888]
[1645286847793,1.435,2759.5,2759.0,0.00343268]
[1645286847794,1.34157,2759.5,2759.0,0.00343268]
[1645286848193,0.435,2759.5,2759.0,0.00343268]
[1645286848797,0.435,2759.5,2758.9,1.53997888]
[1645286848998,0.435,2759.5,2759.1,0.00343261]
[1645286849796,0.435,2759.5,2759.1,1.54333567]
[1645286849995,0.435,2759.5,2759.2,1.53990681]
[1645286850241,0.9065,2759.7,2759.5,0.86999999]
[1645286850441,0.00343175,2759.8,2759.5,0.86999999]
[1645286850838,0.00343175,2759.8,2759.5,0.81999999]
[1645286851040,0.90643,2759.9,2759.5,0.81999999]
[1645286851442,0.90643,2759.9,2759.6,1.53970106]
[1645286851443,0.00343204,2759.8,2759.6,1.53970106]
[1645286851641,0.00343204,2759.8,2759.5,0.81999999]
[1645286852047,0.00343204,2759.8,2759.6,1.53974967]
[1645286852241,0.90643,2759.9,2759.6,1.53974967]
[1645286852641,0.00343204,2759.8,2759.6,1.53974967]
[1645286853444,0.5528433,2760.4,2759.6,1.53974967]
[1645286853643,1.5528433,2760.4,2759.6,1.53974967]
[1645286853845,0.00343208,2759.8,2759.6,1.53974967]
[1645286854499,11.11,2759.7,2759.6,1.53974967]
[1645286854902,12.11,2759.7,2759.5,0.81999999]
[1645286855096,12.11,2759.6,2759.5,0.81999999]
[1645286855298,12.545,2759.6,2759.5,2.35990202]
[1645286855504,11.11,2759.4,2758.6,0.67379937]
[1645286855703,11.11,2759.2,2758.6,1.5400927]
[1645286855906,11.11,2759.2,2757.7,1.3483804]
[1645286855907,13.299,2759.0,2757.8,4.17379937]
[1645286856101,13.299,2758.8,2757.9,1.54028239]
[1645286856299,13.299,2758.6,2758.0,1.54028239]
[1645286856505,13.299,2758.6,2757.9,1.54028239]
[1645286856506,0.435,2758.5,2757.9,1.54028239]
[1645286856700,2.34209,2758.5,2757.9,1.54028239]
[1645286857498,2.34209,2758.5,2757.7,1.54028239]
[1645286858145,3.03289,2758.5,2757.8,1.54028239]
[1645286858347,3.03289,2758.5,2757.9,1.54028239]
[1645286858348,0.65430546,2758.1,2757.9,1.54028239]
[1645286858547,0.435,2758.1,2758.0,1.54028239]
[1645286858753,0.435,2758.1,2757.2,2.7547]
[1645286858754,11.11,2757.9,2757.2,0.67379937]
[1645286858952,0.435,2757.8,2757.3,1.54056209]
[1645286859149,1.435,2757.8,2757.4,1.54056209]
[1645286859353,1.0,2758.6,2757.5,5.71436146]
[1645286859550,0.435,2758.4,2757.6,1.54056209]
[1645286859755,1.14918323,2758.4,2757.7,0.69299755]
[1645286859963,1.14918323,2758.4,2757.8,1.54056209]
[1645286860253,1.14918323,2758.4,2757.9,1.54056209]
[1645286860450,1.14918323,2758.4,2758.0,1.54056209]
[1645286860660,1.14918323,2758.4,2758.1,1.54056209]
[1645286860851,1.14918323,2758.4,2758.2,1.54056209]
[1645286861052,2.05610323,2758.4,2757.6,0.71367418]
[1645286861254,1.14918323,2758.4,2758.0,0.00343308]
[1645286861503,2.76105213,2759.2,2758.0,0.00343308]
[1645286861504,0.435,2758.8,2758.0,0.00343308]
[1645286861894,0.90683,2758.7,2757.9,3.5]
[1645286862095,0.90683,2758.7,2758.0,1.54038193]
[1645286862295,0.90683,2758.7,2758.3,0.00343298]
[1645286862498,0.50368692,2758.6,2758.3,0.00343298]
[1645286863095,0.50368692,2758.6,2757.9,1.54033499]
[1645286863096,1.41067302,2758.6,2757.9,1.54033499]
[1645286863296,0.435,2758.5,2758.0,1.54033499]
[1645286863493,0.435,2758.5,2758.3,0.00343296]
[1645286863796,1.435,2758.5,2758.3,0.00343296]
[1645286863993,2.24903,2758.5,2758.3,0.00343296]
[1645286864195,3.24903,2758.5,2758.3,0.00343296]
[1645286864393,3.24903,2758.5,2758.0,1.54040066]
[1645286864595,3.24903,2758.5,2758.3,0.00343298]
[1645286865251,1.435,2758.5,2758.3,0.00343298]
[1645286865450,1.435,2758.5,2757.9,1.54040066]
[1645286865451,0.435,2758.5,2757.9,1.54040066]
[1645286865852,0.50368692,2758.6,2758.3,0.00343298]
[1645286866551,0.50368692,2758.6,2758.3,1.54383364]
[1645286866552,1.81391,2758.5,2758.3,1.54383364]
[1645286866749,1.81391,2758.5,2757.6,0.1812]
[1645286866750,0.64494996,2757.9,2757.6,0.1812]
[1645286866950,1.81391,2758.5,2757.7,1.54033939]
[1645286867149,1.81391,2758.5,2758.3,0.00343296]
[1645286867553,2.7209438,2758.5,2758.3,0.00343296]
[1645286867751,0.90695,2758.4,2758.3,0.00343296]
[1645286867955,0.59122718,2758.1,2758.0,1.54033939]
[1645286868149,0.59122718,2758.1,2757.7,0.1812]
[1645286868150,0.59122718,2758.1,2757.8,1.55407336]
[1645286868351,0.59122718,2758.1,2757.9,1.54033939]
[1645286869494,0.59122718,2758.1,2758.0,1.54033939]
[1645286869900,0.59122718,2758.1,2757.9,0.00343315]
[1645286870295,1.81392,2758.5,2758.3,1.05190105]
[1645286870894,0.59198424,2758.4,2758.3,1.05190105]
[1645286871295,1.49888424,2758.4,2758.3,1.05190105]
[1645286871496,1.79888424,2758.4,2758.3,1.05190105]
[1645286871704,1.79888424,2758.4,2758.3,4.60190105]
[1645286871705,3.23388424,2758.4,2758.3,4.60190105]
[1645286872944,2.93388424,2758.4,2758.3,4.60190105]
[1645286873543,3.23388424,2758.4,2758.3,4.60190105]
[1645286874343,2.93388424,2758.4,2758.3,4.60190105]
[1645286874744,3.23388424,2758.4,2758.3,4.60190105]
[1645286874945,2.93388424,2758.4,2758.3,4.60190105]
[1645286876246,1.49888424,2758.4,2758.3,4.60190105]
[1645286876502,2.49888424,2758.4,2758.3,4.60190105]
[1645286876799,1.49888424,2758.4,2758.3,4.60190105]
[1645286877001,2.49888424,2758.4,2758.3,4.60190105]
[1645286877906,1.9069,2758.4,2758.3,4.60190105]
[1645286878102,1.0,2758.4,2758.3,4.60190105]
[1645286878300,0.90683,2758.7,2758.3,4.60190105]
[1645286879302,0.59198424,2758.5,2758.4,0.00343016]
[1645286879704,2.40589424,2758.5,2758.4,0.00343016]
[1645286879906,2.49891424,2758.5,2758.3,4.60190105]
[1645286880346,1.0,2759.0,2758.3,4.60533123]
[1645286880549,1.0,2759.0,2758.4,1.54021886]
[1645286880743,1.0,2759.0,2758.3,4.60533123]
[1645286880744,0.435,2759.1,2758.3,4.60533123]
[1645286881145,0.435,2759.1,2758.3,4.60190105]
[1645286881344,0.9068,2758.7,2758.6,0.00343007]
[1645286882144,1.81362,2759.0,2758.6,0.00343007]
[1645286882345,1.81362,2759.0,2758.3,4.60190105]
[1645286882748,1.81362,2759.0,2758.5,0.00336856]
[1645286883149,2.40560424,2759.0,2758.5,0.00336856]
[1645286883548,0.90679,2758.9,2758.3,8.10190105]
[1645286883747,1.0,2759.0,2758.6,0.00336852]
[1645286883995,2.2483,2759.5,2758.6,0.00336852]
[1645286883996,1.0,2759.3,2758.6,0.00336852]
[1645286884195,1.8133,2759.5,2758.6,1.54349754]
[1645286884495,0.0033672,2759.7,2758.8,0.90645]
[1645286884697,0.90652,2759.6,2758.9,4.12143265]
[1645286884897,0.55297634,2760.0,2758.9,5.66156167]
[1645286884898,1.81303,2759.9,2758.9,5.66156167]
[1645286885096,0.00336744,2759.7,2759.0,1.54012902]
[1645286885297,0.00336744,2759.7,2759.1,3.5]
[1645286885499,0.00336744,2759.7,2759.2,1.72122902]
[1645286885701,0.00336744,2759.7,2759.3,1.54012902]
[1645286885897,0.59198424,2760.4,2759.5,0.61071036]
[1645286886297,0.00323146,2759.7,2759.6,1.53961298]
[1645286886499,0.00323146,2759.7,2759.5,0.61071036]
[1645286887200,0.90627,2760.3,2759.5,0.61071036]
[1645286887399,0.00323153,2759.7,2759.5,0.61071036]
[1645286887599,0.00323153,2759.7,2759.6,1.53960631]
[1645286888156,0.00323153,2759.7,2759.5,0.61071036]
[1645286888359,0.81146917,2760.7,2759.4,1.08734]
[1645286888360,7.755,2761.3,2759.6,10.22068126]
[1645286888653,7.755,2761.3,2760.2,0.90597]
[1645286888654,0.01292334,2760.4,2760.2,0.90597]
[1645286888862,0.01292334,2760.4,2759.8,0.5826]
[1645286888863,0.01292334,2760.4,2759.9,2.9867]
[1645286889049,0.01292334,2760.4,2759.9,6.4867]
[1645286889252,0.01292334,2760.4,2760.0,1.53942814]
[1645286889453,0.01292334,2760.4,2760.0,5.58288268]
[1645286889650,0.57441542,2761.2,2760.1,2.44536814]
[1645286889950,7.32,2761.3,2759.9,3.89273]
[1645286889951,0.0022501,2760.3,2759.9,2.9867]
[1645286890151,0.0022501,2760.3,2760.0,1.53943173]
[1645286890452,0.00899904,2760.7,2760.4,0.0045002]
[1645286890853,0.90604,2761.1,2760.4,0.0045002]
[1645286891052,1.47642543,2761.1,2760.4,0.0045002]
[1645286891249,0.57038543,2761.1,2760.4,0.0045002]
[1645286891703,1.0,2761.2,2760.4,0.0045002]
[1645286891900,0.90603,2761.1,2760.4,0.0045002]
[1645286892297,1.0,2761.2,2760.4,0.0045002]
[1645286892498,1.81202,2761.4,2760.4,0.0045002]
[1645286892898,1.81202,2761.4,2760.8,0.59755421]
[1645286893503,0.00343156,2761.0,2760.8,0.59755421]
[1645286893701,0.00343156,2761.0,2760.8,4.19755421]
[1645286893905,3.156e-05,2761.0,2760.8,3.6]
[1645286894299,0.01372419,2761.5,2760.8,3.6]
[1645286894500,0.0408884,2761.8,2760.8,4.3261]
[1645286895103,0.0408884,2761.8,2761.5,0.68168084]
[1645286895348,0.0408884,2761.8,2760.8,5.41136]
[1645286895549,0.4758884,2761.8,2760.8,3.6]
[1645286895747,0.91287495,2761.7,2760.8,3.6]
[1645286897149,0.81287495,2761.7,2760.8,3.6]
[1645286898250,0.00343348,2761.4,2760.8,3.6]
[1645286898657,0.00343348,2761.4,2761.2,0.59594174]
[1645286899301,0.48962026,2761.8,2761.2,0.59594174]
[1645286899302,0.4758884,2761.8,2761.2,0.59594174]
[1645286899499,0.01373212,2761.7,2761.2,0.59594174]
[1645286900295,0.4758884,2761.8,2761.2,0.59594174]
[1645286900696,0.00343339,2761.6,2761.2,0.59594174]
[1645286900896,0.00343339,2761.6,2760.8,3.6]
[1645286901098,0.00343339,2761.6,2760.8,4.50576]
[1645286901499,0.3258884,2761.8,2760.8,4.50576]
[1645286901899,0.0034335,2761.3,2760.8,3.6]
[1645286902850,3.83962035,2761.8,2760.8,3.6]
[1645286902851,1.0,2761.7,2760.8,3.6]
[1645286903050,1.0,2761.7,2761.0,0.53536545]
[1645286903051,0.00343357,2761.2,2761.0,0.53536545]
[1645286903952,0.3258884,2761.8,2761.0,0.53536545]
[1645286904151,0.00343355,2761.2,2761.0,0.53536545]
[1645286905152,1.3258884,2761.8,2761.0,0.53536545]
[1645286905451,0.01373212,2761.7,2761.6,0.59249957]
[1645286905851,0.01373212,2761.7,2761.0,6.4157]
[1645286906052,0.01373212,2761.7,2761.0,2.9157]
[1645286906509,0.04035806,2762.0,2760.8,7.1]
[1645286906716,0.00343344,2761.5,2760.6,2.9159]
[1645286907605,0.59198424,2761.6,2760.7,1.53898219]
[1645286907804,0.00343357,2761.2,2760.6,5.03898219]
[1645286908008,0.00343357,2761.2,2760.7,1.53897241]
[1645286908009,3.357e-05,2761.2,2760.7,1.53897241]
[1645286908207,3.357e-05,2761.2,2760.8,3.5]
[1645286908406,3.357e-05,2761.2,2760.9,1.53881186]
[1645286908805,1.0137835,2762.1,2760.7,1.53881186]
[1645286909011,1.0137835,2762.1,2760.5,1.1292]
[1645286909012,1.81171,2761.8,2761.3,0.6724287]
[1645286909410,2.81171,2761.8,2761.3,0.6724287]
[1645286909608,2.81171,2761.8,2760.6,3.5]
[1645286909609,1.81171,2761.8,2760.6,3.5]
[1645286909807,1.0,2761.7,2760.7,1.53883679]
[1645286910007,1.0,2761.8,2760.7,1.53883679]
[1645286910245,0.18729816,2761.9,2760.7,1.53883679]
[1645286910842,0.18729816,2761.9,2761.1,0.59483991]
[1645286911245,0.90583,2761.6,2761.1,0.59483991]
[1645286911548,0.17356712,2761.9,2761.1,0.59483991]
[1645286912343,0.90577,2761.8,2761.1,0.59483991]
[1645286912544,0.84187,2761.8,2761.1,0.59483991]
[1645286912744,0.84187,2761.8,2760.8,3.5]
[1645286912944,0.84187,2761.8,2760.9,1.53887341]
[1645286913445,0.04035806,2762.0,2761.0,3.5]
[1645286913647,0.04035806,2762.0,2761.1,1.53887341]
[1645286913648,0.94605806,2762.0,2761.1,1.53887341]
[1645286913999,0.04035806,2762.0,2761.8,0.58345073]
[1645286914797,5.806e-05,2762.0,2761.8,0.58345073]
[1645286915002,8.682,2762.9,2761.8,0.58345073]
[1645286915003,8.16,2762.9,2762.0,8.0]
[1645286915201,0.522,2763.2,2762.2,8.0]
[1645286915202,0.01373074,2762.5,2762.2,8.0]
[1645286915403,0.5514697,2763.6,2762.3,7.9]
[1645286915404,1.0734697,2763.6,2762.3,7.9]
[1645286915607,0.93282985,2763.4,2762.4,4.40511]
[1645286915806,0.0514697,2763.6,2762.5,2.44303293]
[1645286916008,0.0514697,2763.6,2762.6,1.71890613]
[1645286916009,1.45464964,2763.6,2762.6,1.71890613]
[1645286916208,1.45464964,2763.6,2762.5,2.7634]
[1645286916209,1.97664964,2763.6,2762.5,2.7634]
[1645286916405,1.97664964,2763.6,2762.0,0.1809]
[1645286916406,3.5,2763.5,2761.8,1.165]
[1645286916707,5.0,2763.1,2761.9,1.53821906]
[1645286916900,6.526,2762.9,2761.9,1.53821906]
[1645286917102,0.522,2762.8,2761.9,1.53821906]
[1645286917742,0.522,2762.8,2762.0,1.53821906]
[1645286917945,0.522,2762.8,2762.1,1.53821906]
[1645286917946,1.42765,2762.8,2762.1,1.53821906]
[1645286918145,1.42765,2762.8,2762.2,1.53821906]
[1645286918445,1.42765,2762.8,2762.3,1.53821906]
[1645286918446,0.522,2762.8,2762.3,1.53821906]
[1645286918844,0.522,2762.8,2762.1,1.53821906]
[1645286919046,2.71694,2763.0,2762.2,3.5]
[1645286919354,2.7161525,2763.7,2762.2,3.5]
[1645286919355,5.99563634,2763.9,2762.3,7.44328926]
[1645286919545,5.99563634,2763.9,2763.0,2.46062409]
[1645286919745,4.5410166,2763.9,2763.1,5.03821906]
[1645286919946,4.5410166,2763.9,2763.2,1.53821906]
[1645286919947,0.01372472,2763.3,2763.2,1.53821906]
[1645286920147,0.01372472,2763.3,2763.1,1.53821906]
[1645286920346,0.01372472,2763.3,2763.1,1.43821906]
[1645286920548,0.01372472,2763.3,2763.0,3.36565409]
[1645286920848,3.6359366,2763.9,2763.2,0.67607328]
[1645286922400,3.6359366,2763.9,2763.3,3.5]
[1645286922601,3.6359366,2763.9,2763.2,0.67607328]
[1645286923202,3.6359366,2763.9,2763.7,0.62994627]
[1645286924805,3.63936724,2763.9,2763.3,0.67379937]
[1645286925006,3.63936724,2763.9,2763.1,3.5]
[1645286925248,0.3340691,2764.9,2763.3,5.0]
[1645286925249,0.522,2764.7,2763.3,5.0]
[1645286925453,0.3340691,2764.9,2763.7,0.67379937]
[1645286925652,0.3340691,2764.9,2763.9,0.67379937]
[1645286925848,0.3340691,2764.9,2764.1,0.90451]
[1645286926050,0.3340691,2764.9,2764.1,0.85451]
[1645286926249,0.3340691,2764.9,2763.9,0.9045581]
[1645286926456,0.3340691,2764.9,2763.9,1.98972]
[1645286926653,0.3340691,2764.9,2764.0,1.80897]
[1645286926854,0.3340691,2764.9,2764.1,0.90459]
[1645286927053,0.3340691,2764.9,2764.2,0.67379937]
[1645286927257,0.3340691,2764.9,2764.2,1.57830387]
[1645286927456,0.3340691,2764.9,2764.2,2.48279387]
[1645286927654,0.3340691,2764.9,2764.3,0.67379937]
[1645286927853,0.2340691,2764.9,2764.3,3.38702937]
[1645286928054,0.2340691,2764.9,2764.3,1.80874]
[1645286928254,0.5889995,2765.3,2764.5,8.0]
[1645286928255,0.0018417,2765.3,2764.5,8.0]
[1645286928659,1.05234304,2766.5,2764.7,0.90436]
[1645286928660,0.522,2766.3,2764.7,0.90436]
[1645286928854,0.522,2766.3,2764.8,3.5]
[1645286929103,0.53547461,2765.9,2764.6,4.0039391]
[1645286929299,0.90439,2766.0,2764.6,4.0039391]
[1645286929300,1.42639,2766.0,2764.6,3.5]
[1645286929501,0.00342693,2765.7,2764.7,0.90447]
[1645286929704,0.00342693,2765.7,2764.4,4.17379937]
[1645286929907,0.00342693,2765.7,2764.4,0.67379937]
[1645286930102,0.00342693,2765.7,2764.6,3.6]
[1645286930400,5.01214961,2765.9,2764.6,3.6]
[1645286930401,0.70569212,2765.0,2764.6,3.6]
[1645286930803,0.522,2764.9,2764.6,3.6]
[1645286931002,0.822,2764.9,2764.6,3.6]
[1645286931205,1.81002,2764.8,2764.6,3.6]
[1645286931804,1.81002,2764.8,2763.4,2.04284402]
[1645286932002,1.81002,2764.8,2764.3,0.00342804]
[1645286932003,0.01203013,2764.5,2764.3,0.00342804]